bitfinex/quotes_BTCUSD_20230118
["timestamp","ask_amount","ask_price","bid_price","bid_amount"]
[1674058557805,0.629258,20866.0,20855.0,0.1367]
[1674058558337,0.629258,20866.0,20857.0,0.4252]
[1674058558338,0.62926,20866.0,20857.0,0.4252]
[1674058558340,0.62926,20866.0,20857.0,0.1379]
[1674058558566,0.47926,20866.0,20858.0,0.3]
[1674058558825,0.479236,20867.0,20857.0,0.76207158]
[1674058559089,0.69303105,20869.0,20860.0,0.1373]
[1674058559362,0.15,20868.0,20861.0,0.79477758]
[1674058559680,0.21384205,20869.0,20862.0,0.627763]
[1674058559940,0.21384205,20869.0,20863.0,0.3224]
[1674058560203,0.21384205,20869.0,20864.0,0.3]
[1674058560460,0.21384205,20869.0,20862.0,0.3]
[1674058561122,0.21384205,20869.0,20863.0,0.289058]
[1674058561340,0.21384205,20869.0,20864.0,0.612792]
[1674058561562,0.21384205,20869.0,20865.0,0.318314]
[1674058561780,0.21384205,20869.0,20865.0,0.3]
[1674058562030,0.21384205,20869.0,20866.0,0.321363]
[1674058562245,0.21384205,20869.0,20867.0,0.612022]
[1674058562461,0.21384205,20869.0,20868.0,0.317112]
[1674058562715,0.21384205,20869.0,20868.0,0.617112]
[1674058562938,0.21384205,20869.0,20868.0,0.904412]
[1674058562939,0.05562726,20869.0,20868.0,0.904412]
[1674058563714,0.05562726,20869.0,20868.0,1.408212]
[1674058564167,0.05562726,20869.0,20868.0,0.617112]
[1674058564439,0.05562726,20869.0,20868.0,0.317112]
[1674058564977,0.05562726,20869.0,20862.0,1.2372]
[1674058565235,0.05562726,20869.0,20865.0,0.2873]
[1674058565494,0.05562726,20869.0,20867.0,0.1379]
[1674058565749,0.05562726,20869.0,20868.0,0.309507]
[1674058566029,0.16523995,20870.0,20868.0,0.309507]
[1674058566298,0.16523995,20870.0,20869.0,0.89866]
[1674058566561,0.14918359,20870.0,20869.0,1.19866]
[1674058566818,0.08727247,20870.0,20869.0,1.70246]
[1674058567088,0.05555924,20870.0,20869.0,1.70246]
[1674058567368,0.03470083,20870.0,20869.0,1.55246]
[1674058567651,0.0311902,20870.0,20869.0,0.76136]
[1674058567908,0.0311902,20870.0,20869.0,0.62456]
[1674058569091,0.0214107,20870.0,20869.0,1.04976]
[1674058569341,0.01157724,20870.0,20869.0,1.57411097]
[1674058569870,0.01157724,20870.0,20869.0,2.17842217]
[1674058570170,0.00036507,20875.0,20869.0,1.72464834]
[1674058570430,0.09916097,20876.0,20874.0,0.1379]
[1674058570686,0.09916097,20876.0,20875.0,0.32004]
[1674058570954,0.09916097,20876.0,20869.0,0.45406155]
[1674058571216,0.09916097,20876.0,20868.0,0.6764]
[1674058571560,0.09916097,20876.0,20872.0,0.1379]
[1674058571814,0.09916097,20876.0,20873.0,0.31828927]
[1674058572084,0.09916097,20876.0,20874.0,0.315076]
[1674058572353,0.09916097,20876.0,20874.0,0.451876]
[1674058572615,0.01559706,20876.0,20875.0,0.616459]
[1674058572930,0.00787522,20876.0,20875.0,0.316459]
[1674058573189,0.00787522,20876.0,20872.0,0.1379]
[1674058573450,0.00787522,20876.0,20870.0,0.15845097]
[1674058573713,0.00787522,20876.0,20871.0,0.15]
[1674058573970,0.00787522,20876.0,20872.0,0.328122]
[1674058574276,0.00787522,20876.0,20873.0,0.611397]
[1674058574536,0.00787522,20876.0,20870.0,0.58851806]
[1674058574537,0.00787522,20876.0,20874.0,0.314071]
[1674058574789,0.05975522,20876.0,20875.0,0.325382]
[1674058575057,0.20975522,20876.0,20867.0,0.45061806]
[1674058575324,0.20975522,20876.0,20864.0,0.45061806]
[1674058575325,0.67294876,20874.0,20864.0,0.45061806]
[1674058575773,0.67294876,20874.0,20865.0,0.60061806]
[1674058576037,0.67294876,20874.0,20866.0,0.58851806]
[1674058576296,0.67294876,20874.0,20867.0,0.77498725]
[1674058576564,0.67294876,20874.0,20870.0,0.1379]
[1674058576837,0.67294876,20874.0,20872.0,0.2873]
[1674058577093,0.67294876,20874.0,20873.0,0.598071]
[1674058577368,0.29674688,20874.0,20873.0,0.598071]
[1674058577634,0.28569204,20874.0,20873.0,0.99496197]
[1674058577906,0.28569204,20874.0,20873.0,1.64876197]
[1674058578193,0.28569204,20874.0,20873.0,1.85736552]
[1674058578503,0.32127637,20879.0,20873.0,1.85736552]
[1674058578504,0.15,20884.0,20873.0,8.45591598]
[1674058578773,0.36664606,20882.0,20881.0,0.23943]
[1674058579050,0.36164606,20882.0,20881.0,0.617244]
[1674058579330,0.36164606,20882.0,20881.0,0.87724497]
[1674058579820,0.36164606,20882.0,20881.0,0.63779497]
[1674058579826,0.35392178,20882.0,20881.0,0.617244]
[1674058580367,0.35392178,20882.0,20881.0,0.317244]
[1674058581413,0.34892178,20882.0,20881.0,0.317244]
[1674058581688,0.34892178,20882.0,20881.0,0.617244]
[1674058581962,0.34892178,20882.0,20881.0,1.121044]
[1674058582224,0.34090729,20882.0,20881.0,1.14159497]
[1674058582756,0.34090729,20882.0,20881.0,0.767244]
[1674058583026,0.34090729,20882.0,20881.0,0.84159497]
[1674058583280,0.34090729,20882.0,20881.0,0.317244]
[1674058584024,0.34090729,20882.0,20874.0,0.44010267]
[1674058584283,0.34090729,20882.0,20873.0,0.11301111]
[1674058584848,0.34090729,20882.0,20874.0,0.33345906]
[1674058584849,0.49090729,20882.0,20874.0,0.33345906]
[1674058585082,0.34090729,20882.0,20875.0,0.309483]
[1674058585385,0.34090729,20882.0,20876.0,0.830888]
[1674058585644,0.15,20881.0,20873.0,0.44018188]
[1674058585921,0.15,20881.0,20872.0,0.16938162]
[1674058586253,0.34090729,20882.0,20875.0,0.23952]
[1674058586503,0.34090729,20882.0,20876.0,0.325965]
[1674058586748,0.30880569,20882.0,20877.0,0.463417]
[1674058587033,0.30380569,20882.0,20880.0,0.23946]
[1674058587272,0.27948719,20882.0,20881.0,0.613681]
[1674058587795,0.27948719,20882.0,20881.0,1.2262201]
[1674058588032,0.24402305,20882.0,20881.0,0.763681]
[1674058588767,0.24402305,20882.0,20881.0,0.613681]
[1674058589010,0.24402305,20882.0,20881.0,1.14179106]
[1674058589494,0.21862034,20882.0,20881.0,1.14179106]
[1674058589755,0.17841617,20882.0,20881.0,1.14179106]
[1674058590270,0.17841617,20882.0,20881.0,0.84179106]
[1674058590513,0.17841617,20882.0,20881.0,0.817481]
[1674058590754,0.17841617,20882.0,20881.0,0.84179106]
[1674058591249,0.17841617,20882.0,20881.0,0.817481]
[1674058592023,0.17841617,20882.0,20881.0,0.313681]
[1674058592517,0.14858358,20882.0,20881.0,0.313681]
[1674058593245,0.14858358,20882.0,20881.0,0.84179106]
[1674058593481,0.08966812,20882.0,20881.0,0.33799106]
[1674058593725,0.08966812,20882.0,20881.0,0.63799106]
[1674058593982,0.03966812,20882.0,20881.0,0.313681]
[1674058594998,0.03966812,20882.0,20881.0,0.30949679]
[1674058595239,0.03966812,20882.0,20878.0,0.320726]
[1674058595500,0.03966812,20882.0,20875.0,2.22967935]
[1674058595744,0.03966812,20882.0,20876.0,0.575536]
[1674058596009,0.03966812,20882.0,20877.0,0.299187]
[1674058596255,0.03966812,20882.0,20878.0,0.31691]
[1674058596514,0.03966812,20882.0,20879.0,0.30997]
[1674058596758,0.03966812,20882.0,20880.0,0.31601]
[1674058597006,0.03966812,20882.0,20881.0,0.310229]
[1674058597270,0.03966812,20882.0,20881.0,0.3]
[1674058597512,0.03966812,20882.0,20881.0,1.105028]
[1674058597749,0.03966812,20882.0,20881.0,0.62557562]
[1674058597993,0.03966812,20882.0,20881.0,0.601228]
[1674058600780,0.03966812,20882.0,20881.0,1.12937562]
[1674058601075,0.03966812,20882.0,20881.0,1.55457394]
[1674058601334,0.03966812,20882.0,20881.0,1.12937562]
[1674058601579,0.03309376,20882.0,20881.0,1.55457394]
[1674058601856,0.32788619,20883.0,20881.0,1.55457394]
[1674058601857,0.00706276,20883.0,20881.0,1.55457394]
[1674058602101,0.00706276,20883.0,20882.0,1.77327454]
[1674058602359,0.00706276,20883.0,20882.0,2.34568352]
[1674058602680,0.00706276,20883.0,20882.0,3.27683379]
[1674058602891,0.00706276,20883.0,20882.0,2.80013998]
[1674058603131,0.00706276,20883.0,20882.0,2.53753854]
[1674058603380,0.00706276,20883.0,20882.0,2.27529962]
[1674058603616,0.00706276,20883.0,20882.0,2.53795106]
[1674058603878,2.76e-06,20883.0,20882.0,2.53795106]
[1674058604122,0.00549025,20885.0,20882.0,2.9603236]
[1674058604374,0.00549025,20885.0,20884.0,0.7904]
[1674058604618,0.00549025,20885.0,20884.0,1.83187454]
[1674058604868,0.00549025,20885.0,20884.0,1.85622216]
[1674058605106,0.72457789,20886.0,20885.0,0.6538]
[1674058605369,0.02814627,20886.0,20885.0,1.866202]
[1674058605619,0.02814627,20886.0,20885.0,2.41780439]
[1674058605885,0.02814627,20886.0,20885.0,2.39345677]
[1674058606143,0.02814627,20886.0,20885.0,2.09345677]
[1674058606407,8.1e-07,20887.0,20885.0,2.21568944]
[1674058606652,0.00549025,20891.0,20887.0,0.5038]
[1674058606653,0.34735785,20888.0,20887.0,0.5038]
[1674058606896,0.34735785,20888.0,20887.0,0.816171]
[1674058607196,0.34735785,20888.0,20887.0,1.09590021]
[1674058607433,0.34735785,20888.0,20887.0,0.312371]
[1674058607929,0.34735785,20888.0,20887.0,1.151741]
[1674058608678,0.00549025,20891.0,20887.0,2.0989666]
[1674058608918,0.00549025,20891.0,20888.0,1.83253746]
[1674058609159,0.00549025,20891.0,20888.0,1.41418]
[1674058609405,1.32646521,20889.0,20888.0,1.43852762]
[1674058609697,0.00549025,20891.0,20889.0,0.6538]
[1674058609982,1.89585011,20890.0,20889.0,1.68564968]
[1674058610202,1.89585011,20890.0,20889.0,2.25608084]
[1674058610453,0.00549025,20891.0,20889.0,1.96537889]
[1674058610710,0.00549025,20891.0,20890.0,2.42548188]
[1674058610962,2.5e-07,20891.0,20890.0,2.42548188]
[1674058611217,2.5e-07,20891.0,20890.0,2.27115878]
[1674058611463,1.378109,20896.0,20890.0,2.96094999]
[1674058611728,1.378109,20896.0,20891.0,1.055418]
[1674058611994,1.378109,20896.0,20891.0,1.10454055]
[1674058612250,1.378109,20896.0,20891.0,0.82888817]
[1674058612515,1.378109,20896.0,20891.0,1.42888817]
[1674058612763,1.378109,20896.0,20891.0,1.70926913]
[1674058612999,1.06478708,20893.0,20891.0,1.42888817]
[1674058613243,1.06478708,20893.0,20892.0,1.105293]
[1674058613737,1.06478708,20893.0,20892.0,1.09845457]
[1674058613989,1.06478708,20893.0,20892.0,1.417993]
[1674058614492,1.378109,20896.0,20893.0,0.6538]
[1674058614736,1.378109,20896.0,20893.0,0.861349]
[1674058615235,1.378109,20896.0,20893.0,1.161349]
[1674058615990,1.378109,20896.0,20893.0,1.37318908]
[1674058616236,0.68999251,20897.0,20894.0,0.00464]
[1674058616487,0.68999251,20897.0,20896.0,0.87957]
[1674058616736,0.68999251,20897.0,20896.0,0.957997]
[1674058616982,0.68999251,20897.0,20896.0,1.21390477]
[1674058617224,0.68999251,20897.0,20896.0,1.75908938]
[1674058617490,0.68521902,20897.0,20896.0,2.32546894]
[1674058617742,0.68521902,20897.0,20896.0,2.30112132]
[1674058617997,0.68521902,20897.0,20896.0,2.87267401]
[1674058618244,0.68521902,20897.0,20896.0,1.9865208]
[1674058618491,0.68521902,20897.0,20896.0,1.3865208]
[1674058618746,0.68521902,20897.0,20896.0,0.6435508]
[1674058618993,0.37321902,20897.0,20896.0,0.64345321]
[1674058619995,0.42024807,20897.0,20896.0,0.5651238]
[1674058620260,0.37321902,20897.0,20896.0,0.8946888]
[1674058620998,0.37243902,20897.0,20896.0,0.8946888]
[1674058621242,0.36967902,20897.0,20896.0,1.1339488]
[1674058621489,0.36949902,20897.0,20896.0,1.1339488]
[1674058622008,0.36949902,20897.0,20896.0,1.1339688]
[1674058622282,0.36949902,20897.0,20896.0,0.8946888]
[1674058622556,0.36949902,20897.0,20896.0,0.8947488]
[1674058623031,0.36949902,20897.0,20896.0,1.23472028]
[1674058623531,0.36949902,20897.0,20893.0,0.2]
[1674058623782,0.98474402,20897.0,20891.0,0.38251683]
[1674058624031,0.98474402,20897.0,20891.0,0.38245683]
[1674058624290,0.98474502,20897.0,20891.0,0.38245683]
[1674058624545,0.98474502,20897.0,20888.0,2.139]
[1674058624546,0.1379,20896.0,20888.0,2.139]
[1674058624813,0.957191,20895.0,20888.0,2.139]
[1674058625071,0.1367,20891.0,20883.0,0.66940446]
[1674058625352,0.323038,20890.0,20883.0,0.66940446]
[1674058625546,0.343337,20889.0,20883.0,0.66940446]
[1674058625790,0.1367,20891.0,20883.0,0.66940446]
[1674058626034,1.1646,20892.0,20883.0,0.66934446]
[1674058626287,1.1646,20892.0,20882.0,0.42327562]
[1674058626566,1.1646,20892.0,20882.0,0.42321562]
[1674058626813,1.1596,20892.0,20881.0,0.23945]
[1674058627071,0.1379,20889.0,20878.0,0.93671718]
[1674058627325,0.1379,20887.0,20877.0,0.15]
[1674058627586,0.1379,20887.0,20877.0,0.42214805]
[1674058627865,0.1379,20887.0,20878.0,0.23948]
[1674058628086,0.1379,20887.0,20877.0,0.42268942]
[1674058628328,0.1379,20885.0,20883.0,0.1135949]
[1674058628569,0.24716566,20884.0,20882.0,0.10138471]
[1674058628818,0.329259,20883.0,20878.0,0.01584437]
[1674058629063,0.1379,20880.0,20878.0,0.01584437]
[1674058629339,0.322244,20879.0,20878.0,4.437e-05]
[1674058629580,0.322244,20879.0,20877.0,0.50318993]
[1674058629839,0.309708,20878.0,20877.0,0.50318993]
[1674058630078,0.726932,20882.0,20876.0,0.01575551]
[1674058630079,0.11014,20881.0,20876.0,0.01575551]
[1674058630325,0.11014,20881.0,20876.0,5.551e-05]
[1674058630326,0.475616,20880.0,20876.0,5.551e-05]
[1674058630571,0.324126,20879.0,20872.0,0.18574777]
[1674058630810,0.459676,20878.0,20872.0,0.18574777]
[1674058631067,0.1379,20876.0,20872.0,0.18574777]
[1674058631375,0.1375,20874.0,20872.0,0.18574777]
[1674058631613,0.321541,20873.0,20867.0,1.47015919]
[1674058631895,0.1379,20872.0,20867.0,1.47015919]
[1674058632134,0.1375,20874.0,20867.0,1.47015919]
[1674058632377,0.1375,20874.0,20868.0,0.330301]
[1674058632626,0.1379,20876.0,20867.0,1.47015919]
[1674058632872,0.1379,20876.0,20872.0,0.045]
[1674058633137,0.1379,20876.0,20869.0,0.01599814]
[1674058633385,0.479007,20877.0,20876.0,0.27579999]
[1674058633635,0.1379,20877.0,20876.0,0.27579999]
[1674058633881,0.465704,20877.0,20876.0,0.57579999]
[1674058634131,0.9447,20877.0,20876.0,0.57579999]
[1674058634389,0.9447,20877.0,20876.0,0.13759816]
[1674058634636,1.5447,20877.0,20876.0,0.13759816]
[1674058634875,1.5907,20877.0,20876.0,0.13759816]
[1674058635119,1.5347,20877.0,20876.0,0.13359816]
[1674058635374,1.5807,20877.0,20876.0,0.13759816]
[1674058635620,0.455704,20877.0,20876.0,0.13359816]
[1674058636392,0.1375,20881.0,20876.0,0.13359816]
[1674058636641,0.727232,20884.0,20876.0,0.16307228]
[1674058636912,0.478864,20883.0,20876.0,0.16307228]
[1674058637155,0.046,20877.0,20876.0,0.16707228]
[1674058637401,0.046,20877.0,20876.0,0.16307228]
[1674058637663,0.046,20877.0,20876.0,0.13759816]
[1674058637908,0.10983,20880.0,20876.0,0.13759816]
[1674058638158,0.616769,20883.0,20876.0,0.14159816]
[1674058638428,0.616769,20883.0,20876.0,0.13359816]
[1674058638429,0.043,20877.0,20876.0,0.13359816]
[1674058638675,0.086,20877.0,20876.0,0.43759816]
[1674058639181,0.086,20877.0,20876.0,0.81441718]
[1674058639182,0.043,20877.0,20876.0,0.81441718]
[1674058639422,0.1098,20886.0,20877.0,0.17140362]
[1674058639664,0.24839,20887.0,20877.0,0.17140362]
[1674058639665,0.1379,20887.0,20878.0,0.52017338]
[1674058639910,0.1379,20887.0,20879.0,1.05371638]
[1674058640154,0.1379,20887.0,20879.0,0.3]
[1674058640409,0.616673,20887.0,20879.0,0.3]
[1674058640659,0.1419,20883.0,20877.0,0.17140362]
[1674058640924,0.1379,20880.0,20877.0,0.17140362]
[1674058641176,0.1379,20880.0,20879.0,0.049]
[1674058641435,0.339208,20880.0,20877.0,0.17140362]
[1674058641697,0.88474645,20884.0,20877.0,0.17140362]
[1674058641948,0.478818,20885.0,20877.0,0.17140362]
[1674058642196,0.004,20880.0,20877.0,0.22040362]
[1674058642448,0.478842,20884.0,20883.0,0.22884]
[1674058642694,0.957677,20884.0,20883.0,0.52884]
[1674058642953,1.270246,20884.0,20883.0,0.52884]
[1674058643192,1.270246,20884.0,20883.0,0.22884]
[1674058643452,1.270246,20884.0,20877.0,0.22040362]
[1674058643453,1.886981,20884.0,20877.0,0.22040362]
[1674058643710,0.342845,20883.0,20877.0,0.22040362]
[1674058643979,0.342845,20883.0,20877.0,0.17140362]
[1674058643980,0.1367,20879.0,20877.0,0.17140362]
[1674058644288,0.1367,20879.0,20877.0,0.23240362]
[1674058644289,0.796396,20878.0,20877.0,0.23240362]
[1674058644727,0.796396,20878.0,20877.0,0.29340362]
[1674058644981,0.796396,20878.0,20877.0,0.17140362]
[1674058645458,0.796396,20878.0,20877.0,0.17640362]
[1674058645698,0.796396,20878.0,20869.0,0.01599814]
[1674058645960,0.1375,20876.0,20869.0,0.01599814]
[1674058646195,0.803286,20875.0,20869.0,0.01599814]
[1674058646441,0.313608,20874.0,20869.0,0.01599814]
[1674058646690,0.323239,20873.0,20869.0,0.01599814]
[1674058646946,0.479099,20873.0,20869.0,0.01599814]
[1674058647207,0.479081,20874.0,20869.0,0.01599814]
[1674058647447,0.1375,20876.0,20869.0,0.01599814]
[1674058647448,0.479028,20876.0,20869.0,0.01599814]
[1674058647686,0.004,20876.0,20869.0,0.05999814]
[1674058647929,0.957865,20880.0,20870.0,0.36800202]
[1674058648172,0.004,20874.0,20871.0,0.410186]
[1674058648406,0.594156,20882.0,20875.0,0.00564457]
[1674058648653,0.11526,20882.0,20876.0,0.113151]
[1674058648903,0.11526,20882.0,20875.0,0.3]
[1674058649143,0.004,20876.0,20875.0,0.3]
[1674058649462,0.11526,20881.0,20875.0,0.3]
[1674058649985,0.478839,20884.0,20876.0,0.15]
[1674058650237,0.478818,20885.0,20876.0,0.56683926]
[1674058650488,0.478804,20886.0,20877.0,0.3]
[1674058650753,0.589342,20889.0,20878.0,0.336119]
[1674058651023,0.478745,20888.0,20879.0,0.86683926]
[1674058651303,0.478722,20889.0,20880.0,0.3]
[1674058651577,0.47871,20890.0,20880.0,0.74887228]
[1674058651909,0.478688,20891.0,20881.0,0.41683926]
[1674058652110,0.478688,20891.0,20882.0,0.45]
[1674058652367,0.478688,20891.0,20882.0,0.3]
[1674058652893,0.628688,20891.0,20882.0,0.45]
[1674058653168,0.315658,20890.0,20882.0,0.3]
[1674058653424,0.316074,20889.0,20882.0,0.3]
[1674058653690,0.324839,20888.0,20881.0,0.3]
[1674058653955,0.465656,20887.0,20881.0,0.3]
[1674058654242,0.327274,20886.0,20880.0,0.737]
[1674058654504,0.316788,20885.0,20876.0,0.18203302]
[1674058654760,0.318854,20884.0,20874.0,1.3323]
[1674058655024,0.93960521,20885.0,20875.0,0.15]
[1674058655280,0.478818,20885.0,20875.0,0.80635926]
[1674058655557,0.62878,20887.0,20880.0,0.092]
[1674058655558,0.47878,20887.0,20880.0,0.092]
[1674058655895,0.615556,20888.0,20880.0,0.092]
[1674058656061,0.15606743,20892.0,20877.0,0.70413926]
[1674058656336,0.478688,20891.0,20880.0,0.03203302]
[1674058656600,0.00606743,20892.0,20882.0,0.23944]
[1674058656916,0.00606743,20892.0,20883.0,2.05842426]
[1674058657169,0.00606743,20892.0,20884.0,0.54568926]
[1674058657427,0.00606743,20892.0,20885.0,1.02617326]
[1674058657696,0.48472043,20892.0,20884.0,0.41683926]
[1674058657955,0.00606743,20892.0,20886.0,0.3]
[1674058658237,0.48472343,20892.0,20886.0,0.3]
[1674058658510,0.48472343,20892.0,20884.0,0.092]
[1674058658511,0.1379,20890.0,20884.0,0.092]
[1674058658766,0.1367,20888.0,20884.0,0.092]
[1674058659026,0.47872,20890.0,20884.0,0.092]
[1674058659027,0.312514,20887.0,20884.0,0.092]
[1674058659299,0.325889,20886.0,20884.0,0.092]
[1674058659585,0.12506,20889.0,20884.0,0.092]
[1674058659921,0.478767,20887.0,20879.0,0.53059836]
[1674058660117,0.463307,20886.0,20879.0,0.53060459]
[1674058660374,0.324784,20885.0,20879.0,0.28440409]
[1674058660640,1.03285079,20888.0,20884.0,0.006]
[1674058660977,0.15,20887.0,20880.0,0.11378922]
[1674058661234,0.15,20887.0,20879.0,0.17063876]
[1674058661235,0.465179,20886.0,20879.0,0.11378922]
[1674058661470,0.329572,20885.0,20878.0,0.28449239]
[1674058661734,0.478817,20885.0,20878.0,0.11379696]
[1674058661998,0.478814,20885.0,20878.0,0.28449239]
[1674058662305,1.674214,20885.0,20874.0,1.29739206]
[1674058662611,0.42826094,20884.0,20874.0,1.32942508]
[1674058662871,0.42826094,20884.0,20873.0,0.64126011]
[1674058662872,0.1379,20881.0,20873.0,0.64126011]
[1674058663144,1.04507094,20881.0,20873.0,0.64126011]
[1674058663399,0.478884,20882.0,20873.0,0.64126011]
[1674058663679,0.42826094,20882.0,20873.0,0.64126011]
[1674058663965,0.90714594,20882.0,20873.0,0.64126011]
[1674058664254,0.001,20881.0,20873.0,0.72726011]
[1674058664533,0.56616094,20881.0,20873.0,0.64126011]
[1674058664788,0.1379,20879.0,20873.0,0.64126011]
[1674058665311,0.616867,20879.0,20873.0,0.72026011]
[1674058665832,0.15,20878.0,20873.0,0.079]
[1674058666096,0.331222,20877.0,20870.0,0.7602]
[1674058666363,0.15,20878.0,20873.0,0.079]
[1674058666364,0.57826094,20878.0,20873.0,0.079]
[1674058666630,0.479001,20877.0,20869.0,0.01599814]
[1674058666893,1.6014,20879.0,20878.0,0.60453807]
[1674058667150,0.2879,20879.0,20878.0,0.60453807]
[1674058667404,0.616823,20881.0,20878.0,0.60453807]
[1674058667674,0.478885,20882.0,20879.0,0.3]
[1674058667953,0.315843,20881.0,20879.0,0.3]
[1674058668227,0.319143,20880.0,20879.0,0.3]
[1674058668803,0.628834,20885.0,20879.0,0.3]
[1674058669089,0.478846,20884.0,20879.0,0.3]
[1674058669353,0.328266,20883.0,20879.0,0.3]
[1674058669620,0.001,20880.0,20879.0,0.59383895]
[1674058669882,0.478713,20890.0,20880.0,0.00149226]
[1674058670148,0.15,20891.0,20884.0,0.51440213]
[1674058670418,0.15,20891.0,20885.0,0.52862324]
[1674058670674,0.628683,20891.0,20885.0,0.3]
[1674058670944,0.320351,20890.0,20885.0,0.3]
[1674058671226,0.628697,20891.0,20885.0,0.70006578]
[1674058671505,0.15,20891.0,20885.0,0.47144254]
[1674058671841,0.628683,20891.0,20885.0,0.47144254]
[1674058671843,0.628683,20891.0,20885.0,0.3]
[1674058672085,0.319125,20890.0,20885.0,0.3]
[1674058672328,1.107358,20891.0,20885.0,0.41432339]
[1674058672574,1.41896743,20892.0,20886.0,0.40010258]
[1674058672575,1.26896743,20892.0,20886.0,0.40010258]
[1674058672849,0.00566743,20892.0,20887.0,0.58577218]
[1674058673105,0.00566743,20892.0,20889.0,0.11430103]
[1674058673348,0.00566743,20892.0,20889.0,0.58577218]
[1674058674094,0.00566743,20892.0,20889.0,0.3]
[1674058674594,0.48432743,20892.0,20887.0,0.006]
[1674058674866,0.3272,20891.0,20887.0,0.006]
[1674058675123,0.3272,20891.0,20885.0,0.11422786]
[1674058675124,0.339592,20890.0,20885.0,0.11422786]
[1674058675375,0.333814,20889.0,20885.0,0.11422786]
[1674058675723,0.48432743,20892.0,20885.0,0.11422786]
[1674058675887,0.00566743,20892.0,20887.0,0.11421997]
[1674058676161,0.00566743,20892.0,20887.0,0.33350847]
[1674058676411,0.00566743,20892.0,20888.0,0.3]
[1674058676669,0.00566743,20892.0,20889.0,0.11421997]
[1674058676930,0.00566743,20892.0,20889.0,0.11418208]
[1674058677154,0.00566743,20892.0,20888.0,0.58545789]
[1674058677650,0.00566743,20892.0,20890.0,0.11418477]
[1674058677918,0.00566743,20892.0,20891.0,0.42993977]
[1674058678153,0.00566743,20892.0,20891.0,0.615755]
[1674058678419,0.00566743,20892.0,20891.0,0.3]
[1674058678920,0.00566743,20892.0,20891.0,0.626329]
[1674058679185,0.00566743,20892.0,20891.0,1.47693142]
[1674058679443,0.00566743,20892.0,20891.0,0.626329]
[1674058679924,0.00566743,20892.0,20891.0,0.326329]
[1674058680195,0.00566743,20892.0,20887.0,0.7566956]
[1674058680473,0.00566743,20892.0,20886.0,0.1139956]
[1674058680933,0.00566743,20892.0,20887.0,0.327607]
[1674058681193,0.00566743,20892.0,20886.0,0.28498479]
[1674058681433,0.00566743,20892.0,20886.0,0.1889956]
[1674058681434,0.00666743,20892.0,20886.0,0.1889956]
[1674058681681,0.48532343,20892.0,20886.0,0.075]
[1674058681928,0.45718,20891.0,20886.0,0.075]
[1674058682180,0.7379,20889.0,20886.0,0.075]
[1674058682419,0.15,20887.0,20886.0,0.075]
[1674058682674,0.956556,20887.0,20881.0,0.11401646]
[1674058682918,0.956556,20887.0,20880.0,0.11550872]
[1674058682919,0.458554,20886.0,20880.0,0.11550872]
[1674058683186,0.810743,20885.0,20880.0,0.11550872]
[1674058683460,0.15,20883.0,20880.0,0.11550872]
[1674058683715,0.478806,20886.0,20880.0,0.11550872]
[1674058684221,0.1379,20883.0,20880.0,0.00149226]
[1674058684460,0.15,20882.0,20880.0,0.06549226]
[1674058684697,0.340176,20881.0,20880.0,0.00149226]
[1674058684988,0.002,20883.0,20880.0,0.06549226]
[1674058685507,0.618364,20883.0,20880.0,0.06549226]
[1674058685807,0.307104,20882.0,20880.0,0.06549226]
[1674058686039,0.326371,20881.0,20880.0,0.06549226]
[1674058686284,0.628842,20884.0,20880.0,0.00149226]
[1674058686536,0.005,20882.0,20880.0,0.00149226]
[1674058686804,0.319851,20881.0,20880.0,0.00149226]
[1674058687055,0.028,20881.0,20880.0,0.30649226]
[1674058687311,0.15,20886.0,20881.0,0.056]
[1674058687556,0.628773,20887.0,20881.0,0.056]
[1674058687801,0.478793,20886.0,20881.0,0.056]
[1674058688067,0.332415,20885.0,20881.0,0.056]
[1674058688303,0.478793,20886.0,20881.0,0.056]
[1674058688549,0.15,20885.0,20881.0,0.056]
[1674058688798,0.325579,20884.0,20881.0,0.056]
[1674058689052,0.15,20885.0,20881.0,0.056]
[1674058689286,0.478851,20884.0,20881.0,0.056]
[1674058689536,0.31303278,20883.0,20881.0,0.056]
[1674058689784,0.314621,20882.0,20881.0,0.056]
[1674058690049,0.451321,20882.0,20881.0,0.063]
[1674058690299,0.930202,20882.0,20881.0,0.056]
[1674058690544,1.08000478,20882.0,20881.0,0.063]
[1674058691045,1.08000478,20882.0,20881.0,0.056]
[1674058691547,1.16500478,20882.0,20881.0,0.057]
[1674058693076,1.02830478,20882.0,20881.0,0.057]
[1674058694101,0.39942378,20882.0,20881.0,0.057]
[1674058694348,0.39942378,20882.0,20880.0,0.00149226]
[1674058694349,4.944,20881.0,20880.0,0.00149226]
[1674058694644,5.282474,20881.0,20880.0,0.30149226]
[1674058695580,5.282474,20881.0,20880.0,0.00149226]
[1674058695835,5.982278,20881.0,20880.0,0.00249226]
[1674058696831,5.982278,20881.0,20879.0,0.001]
[1674058696832,0.00249,20880.0,20879.0,0.001]
[1674058697130,0.15,20879.0,20878.0,0.60453807]
[1674058697356,0.953167,20879.0,20878.0,0.60453807]
[1674058697601,0.953167,20879.0,20872.0,0.01620085]
[1674058697848,0.1379,20873.0,20872.0,8.5e-07]
[1674058698114,1.408963,20873.0,20872.0,8.5e-07]
[1674058698614,0.450789,20873.0,20872.0,8.5e-07]
[1674058698875,0.312889,20873.0,20872.0,8.5e-07]
[1674058699420,0.6,20877.0,20872.0,8.5e-07]
[1674058699657,0.478951,20879.0,20872.0,8.5e-07]
[1674058699891,0.098,20873.0,20872.0,8.5e-07]
[1674058700136,0.422302,20873.0,20872.0,8.5e-07]
[1674058700377,0.098,20873.0,20872.0,8.5e-07]
[1674058700888,0.479043,20875.0,20872.0,8.5e-07]
[1674058701133,0.317915,20874.0,20872.0,8.5e-07]
[1674058701388,1.413774,20873.0,20872.0,8.5e-07]
[1674058701638,1.510774,20873.0,20872.0,8.5e-07]
[1674058702139,1.413774,20873.0,20872.0,8.5e-07]
[1674058703138,1.511774,20873.0,20872.0,8.5e-07]
[1674058704397,0.15,20872.0,20871.0,0.01620085]
[1674058704641,1.185734,20872.0,20871.0,0.01620085]
[1674058704895,1.185734,20872.0,20871.0,8.5e-07]